[Event "Polofinale MCR junioru 2023"]
[Site "Czech Republic"]
[Date "2023.11.13"]
[Round "3.34"]
[White "Striz, Tadeas"]
[Black "Rucabado, Stefan"]
[Result "0-1"]
[TimeControl "90 min per 40 moves + 15 min + 30 sec / move from move 1"]
[WhiteFideId "23723530"]
[BlackFideId "23730315"]
[WhiteElo "1371"]
[BlackElo "1873"]

1. e4 {[%clk 01:30:57]} {[%emt 00:00:01]} c5 {[%clk 01:30:45]} {[%emt
00:00:16]} 2. Nf3 {[%clk 01:31:21]} {[%emt 00:00:06]} d6 {[%clk 01:31:10]}
{[%emt 00:00:04]} 3. d4 {[%clk 01:31:34]} {[%emt 00:00:17]} cxd4 {[%clk
01:31:35]} {[%emt 00:00:05]} 4. Nxd4 {[%clk 01:32:01]} {[%emt 00:00:03]} Nf6
{[%clk 01:31:58]} {[%emt 00:00:07]} 5. Nc3 {[%clk 01:32:28]} {[%emt 00:00:03]}
a6 {[%clk 01:32:23]} {[%emt 00:00:05]} 6. Be3 {[%clk 01:32:48]} {[%emt
00:00:10]} e5 {[%clk 01:32:47]} {[%emt 00:00:06]} 7. Nb3 {[%clk 01:33:12]}
{[%emt 00:00:06]} Be6 {[%clk 01:33:13]} {[%emt 00:00:05]} 8. f3 {[%clk
01:33:16]} {[%emt 00:00:25]} Be7 {[%clk 01:33:37]} {[%emt 00:00:05]} 9. Qd2
{[%clk 01:33:11]} {[%emt 00:00:35]} h5 {[%clk 01:34:01]} {[%emt 00:00:06]} 10.
O-O-O {[%clk 01:31:39]} {[%emt 00:02:02]} Nbd7 {[%clk 01:34:27]} {[%emt
00:00:05]} 11. Be2 {[%clk 01:27:49]} {[%emt 00:04:19]} b5 {[%clk 01:30:57]}
{[%emt 00:04:00]} 12. a3 {[%clk 01:08:10]} {[%emt 00:20:09]} Rc8 {[%clk
01:18:04]} {[%emt 00:13:22]} 13. Kb1 {[%clk 01:06:19]} {[%emt 00:02:21]} Nb6
{[%clk 01:17:21]} {[%emt 00:01:14]} 14. Na5 {[%clk 00:53:18]} {[%emt 00:13:32]}
Qc7 {[%clk 01:10:53]} {[%emt 00:06:56]} 15. Bxb5+ {[%clk 00:43:49]} {[%emt
00:10:01]} axb5 {[%clk 01:06:51]} {[%emt 00:04:31]} 16. Nxb5 {[%clk 00:44:11]}
{[%emt 00:00:08]} Qb8 {[%clk 01:03:34]} {[%emt 00:03:45]} 17. Nxd6+ {[%clk
00:43:46]} {[%emt 00:00:57]} Bxd6 {[%clk 01:02:28]} {[%emt 00:01:36]} 18. Qxd6
{[%clk 00:44:00]} {[%emt 00:00:15]} Na4 {[%clk 00:58:50]} {[%emt 00:04:07]} 19.
Qb4 {[%clk 00:39:54]} {[%emt 00:04:37]} Qxb4 {[%clk 00:58:44]} {[%emt
00:00:37]} 20. axb4 {[%clk 00:40:22]} {[%emt 00:00:01]} O-O {[%clk 00:57:46]}
{[%emt 00:01:27]} 21. Rd3 {[%clk 00:34:24]} {[%emt 00:06:29]} Rb8 {[%clk
00:37:51]} {[%emt 00:20:22]} 22. Nc6 {[%clk 00:29:45]} {[%emt 00:05:11]} Rb7
{[%clk 00:25:24]} {[%emt 00:12:55]} 23. b3 {[%clk 00:26:18]} {[%emt 00:03:59]}
Rc8 {[%clk 00:04:46]} {[%emt 00:21:08]} 24. b5 {[%clk 00:11:24]} {[%emt
00:15:23]} Kh7 {[%clk 00:04:28]} {[%emt 00:00:48]} 25. c4 {[%clk 00:09:58]}
{[%emt 00:01:56]} Bxc4 {[%clk 00:03:32]} {[%emt 00:01:26]} 26. bxc4 {[%clk
00:09:38]} {[%emt 00:00:50]} Rxc6 {[%clk 00:03:51]} {[%emt 00:00:11]} 27. Rc1
{[%clk 00:09:47]} {[%emt 00:00:20]} Nc5 {[%clk 00:03:06]} {[%emt 00:01:16]} 28.
Ra3 {[%clk 00:09:17]} {[%emt 00:01:01]} Rc8 {[%clk 00:01:41]} {[%emt 00:01:55]}
29. Ka2 {[%clk 00:09:09]} {[%emt 00:00:37]} Ne6 {[%clk 00:00:58]} {[%emt
00:01:13]} 30. Rb3 {[%clk 00:08:37]} {[%emt 00:01:03]} Nd7 {[%clk 00:00:55]}
{[%emt 00:00:33]} 31. Rd3 {[%clk 00:08:06]} {[%emt 00:01:00]} Ndc5 {[%clk
00:00:41]} {[%emt 00:00:44]} 32. Rd5 {[%clk 00:08:36]} f6 {[%clk 00:01:02]}
{[%emt 00:00:09]} 33. Kb2 {[%clk 00:08:52]} {[%emt 00:00:14]} Nd4 {[%clk
00:00:39]} {[%emt 00:00:52]} 34. Rd1 {[%clk 00:08:20]} {[%emt 00:01:02]} Na4+
{[%clk 00:00:50]} {[%emt 00:00:19]} 0-1

[Event "Polofinale MCR junioru 2023"]
[Site "Czech Republic"]
[Date "2023.11.13"]
[Round "3.35"]
[White "Stejskal, Michal"]
[Black "Nespurek, Jakub"]
[Result "0-1"]
[TimeControl "90 min per 40 moves + 15 min + 30 sec / move from move 1"]
[WhiteFideId "398195"]
[BlackFideId "391816"]
[WhiteElo "1872"]
[BlackElo "1680"]

1. e4 {[%clk 01:30:57]} {[%emt 00:00:02]} e5 {[%clk 01:29:57]} {[%emt
00:01:03]} 2. Nf3 {[%clk 01:31:19]} {[%emt 00:00:07]} Nf6 {[%clk 01:29:38]}
{[%emt 00:00:49]} 3. Bc4 {[%clk 01:31:35]} {[%emt 00:00:13]} Nc6 {[%clk
01:29:28]} {[%emt 00:00:41]} 4. d3 {[%clk 01:31:35]} {[%emt 00:00:29]} Bc5
{[%clk 01:29:14]} {[%emt 00:00:44]} 5. Bg5 {[%clk 01:31:29]} {[%emt 00:00:36]}
d6 {[%clk 01:28:41]} {[%emt 00:01:03]} 6. Nc3 {[%clk 01:30:17]} {[%emt
00:01:42]} Bg4 {[%clk 01:27:08]} {[%emt 00:02:03]} 7. Nd5 {[%clk 01:26:37]}
{[%emt 00:04:10]} Nd4 {[%clk 01:26:05]} {[%emt 00:01:33]} 8. c3 {[%clk
01:26:14]} {[%emt 00:00:54]} Nxf3+ {[%clk 01:25:52]} {[%emt 00:00:41]} 9. gxf3
{[%clk 01:26:38]} {[%emt 00:00:06]} Be6 {[%clk 01:23:34]} {[%emt 00:02:47]} 10.
Qb3 {[%clk 01:23:54]} {[%emt 00:03:15]} Bxd5 {[%clk 01:16:37]} {[%emt
00:07:26]} 11. Bxd5 {[%clk 01:24:17]} {[%emt 00:00:08]} O-O {[%clk 01:16:43]}
{[%emt 00:00:24]} 12. Qc2 {[%clk 01:21:27]} {[%emt 00:03:21]} c6 {[%clk
01:16:19]} {[%emt 00:00:55]} 13. Bb3 {[%clk 01:21:53]} {[%emt 00:00:03]} b5
{[%clk 01:15:47]} {[%emt 00:01:02]} 14. a4 {[%clk 01:20:38]} {[%emt 00:01:45]}
a5 {[%clk 01:15:33]} {[%emt 00:00:43]} 15. axb5 {[%clk 01:19:28]} {[%emt
00:01:40]} cxb5 {[%clk 01:15:40]} {[%emt 00:00:23]} 16. Rg1 {[%clk 01:19:09]}
{[%emt 00:00:48]} Kh8 {[%clk 01:09:40]} {[%emt 00:06:30]} 17. Ke2 {[%clk
01:19:05]} {[%emt 00:00:34]} Qb6 {[%clk 01:07:07]} {[%emt 00:03:03]} 18. Bxf6
{[%clk 00:55:57]} {[%emt 00:23:37]} gxf6 {[%clk 01:07:26]} {[%emt 00:00:11]} 19.
Rg2 {[%clk 00:56:11]} {[%emt 00:00:16]} Rg8 {[%clk 01:04:45]} {[%emt 00:03:11]}
20. Rag1 {[%clk 00:54:05]} {[%emt 00:02:36]} Bxf2 {[%clk 01:00:33]} {[%emt
00:04:42]} 21. Rxg8+ {[%clk 00:53:58]} {[%emt 00:00:36]} Rxg8 {[%clk 01:00:48]}
{[%emt 00:00:15]} 22. Rxg8+ {[%clk 00:54:23]} {[%emt 00:00:06]} Kxg8 {[%clk
01:01:13]} {[%emt 00:00:05]} 23. Kf1 {[%clk 00:54:48]} {[%emt 00:00:04]} Bh4
{[%clk 00:58:03]} {[%emt 00:03:40]} 24. Qg2+ {[%clk 00:55:12]} {[%emt
00:00:05]} Kf8 {[%clk 00:58:06]} {[%emt 00:00:27]} 25. d4 {[%clk 00:33:21]}
{[%emt 00:22:22]} exd4 {[%clk 00:49:25]} {[%emt 00:09:09]} 26. Qh3 {[%clk
00:33:15]} {[%emt 00:00:36]} dxc3 {[%clk 00:48:23]} {[%emt 00:01:33]} 27. Qxh4
{[%clk 00:33:25]} {[%emt 00:00:19]} cxb2 {[%clk 00:47:32]} {[%emt 00:01:20]} 28.
Ba2 {[%clk 00:31:36]} {[%emt 00:02:20]} Qd4 {[%clk 00:46:09]} {[%emt 00:01:52]}
29. Ke2 {[%clk 00:22:17]} {[%emt 00:09:49]} b1=Q {[%clk 00:20:49]} {[%emt
00:25:49]} 30. Qh6+ {[%clk 00:22:28]} {[%emt 00:00:19]} Ke7 {[%clk 00:20:50]}
{[%emt 00:00:29]} 31. Bxb1 {[%clk 00:22:53]} {[%emt 00:00:05]} Qb2+ {[%clk
00:21:05]} {[%emt 00:00:15]} 32. Qd2 {[%clk 00:23:18]} {[%emt 00:00:04]} Qxb1
{[%clk 00:21:23]} {[%emt 00:00:13]} 33. Qxa5 {[%clk 00:23:43]} {[%emt
00:00:05]} Qc2+ {[%clk 00:21:14]} {[%emt 00:00:39]} 34. Ke3 {[%clk 00:23:13]}
{[%emt 00:01:01]} Qc5+ {[%clk 00:21:25]} {[%emt 00:00:19]} 35. Kd3 {[%clk
00:23:36]} {[%emt 00:00:06]} b4 {[%clk 00:19:36]} {[%emt 00:02:19]} 36. Qa6
{[%clk 00:23:48]} {[%emt 00:00:18]} Qc3+ {[%clk 00:11:55]} {[%emt 00:08:11]} 37.
Ke2 {[%clk 00:24:08]} {[%emt 00:00:09]} b3 {[%clk 00:11:45]} {[%emt 00:00:41]}
38. Qb7+ {[%clk 00:24:31]} {[%emt 00:00:07]} Kf8 {[%clk 00:11:49]} {[%emt
00:00:26]} 39. Qb8+ {[%clk 00:24:45]} {[%emt 00:00:16]} Kg7 {[%clk 00:11:56]}
{[%emt 00:00:23]} 40. Qxd6 {[%clk 00:25:08]} {[%emt 00:00:07]} h6 {[%clk
00:10:19]} {[%emt 00:02:07]} 41. f4 {[%clk 00:21:15]} {[%emt 00:04:23]} b2
{[%clk 00:07:41]} {[%emt 00:03:08]} 42. e5 {[%clk 00:21:28]} {[%emt 00:00:17]}
fxe5 {[%clk 00:07:08]} {[%emt 00:01:03]} 43. fxe5 {[%clk 00:21:51]} {[%emt
00:00:07]} Qc2+ {[%clk 00:07:26]} {[%emt 00:00:12]} 44. Ke3 {[%clk 00:21:24]}
{[%emt 00:00:57]} Qc1+ {[%clk 00:07:16]} {[%emt 00:00:40]} 45. Kf3 {[%clk
00:21:31]} {[%emt 00:00:23]} Qf1+ {[%clk 00:07:20]} {[%emt 00:00:26]} 46. Kg4
{[%clk 00:21:32]} {[%emt 00:00:29]} b1=Q {[%clk 00:07:22]} {[%emt 00:00:29]}
0-1

[Event "Polofinale MCR junioru 2023"]
[Site "Czech Republic"]
[Date "2023.11.13"]
[Round "3.36"]
[White "Mydlar, Matej"]
[Black "Zezula, Matej"]
[Result "0-1"]
[TimeControl "90 min per 40 moves + 15 min + 30 sec / move from move 1"]
[WhiteFideId "23735074"]
[BlackFideId "23725796"]
[WhiteElo "1809"]
[BlackElo "1666"]

1. e4 {[%clk 01:30:56]} {[%emt 00:00:02]} c5 {[%clk 01:30:51]} {[%emt
00:00:10]} 2. Nf3 {[%clk 01:31:22]} {[%emt 00:00:04]} d6 {[%clk 01:31:16]}
{[%emt 00:00:06]} 3. d4 {[%clk 01:31:41]} {[%emt 00:00:11]} cxd4 {[%clk
01:31:37]} {[%emt 00:00:09]} 4. Nxd4 {[%clk 01:32:02]} {[%emt 00:00:10]} Nf6
{[%clk 01:32:02]} {[%emt 00:00:05]} 5. Nc3 {[%clk 01:32:22]} {[%emt 00:00:09]}
g6 {[%clk 01:32:23]} {[%emt 00:00:10]} 6. Be3 {[%clk 01:32:43]} {[%emt
00:00:09]} Bg7 {[%clk 01:32:45]} {[%emt 00:00:07]} 7. Bc4 {[%clk 01:29:04]}
{[%emt 00:04:08]} O-O {[%clk 01:32:33]} {[%emt 00:00:43]} 8. f3 {[%clk
01:29:06]} {[%emt 00:00:27]} Nc6 {[%clk 01:32:51]} {[%emt 00:00:13]} 9. Bb3
{[%clk 01:27:54]} {[%emt 00:01:42]} Bd7 {[%clk 01:31:42]} {[%emt 00:01:40]} 10.
Qd2 {[%clk 01:25:34]} {[%emt 00:02:50]} Rc8 {[%clk 01:30:20]} {[%emt 00:01:52]}
11. O-O-O {[%clk 01:24:20]} {[%emt 00:01:43]} a5 {[%clk 01:27:22]} {[%emt
00:03:30]} 12. g4 {[%clk 01:22:28]} {[%emt 00:02:22]} Ne5 {[%clk 01:26:47]}
{[%emt 00:01:04]} 13. h4 {[%clk 01:20:48]} {[%emt 00:02:10]} b5 {[%clk
01:21:15]} {[%emt 00:06:02]} 14. a3 {[%clk 01:14:26]} {[%emt 00:06:51]} b4
{[%clk 01:16:20]} {[%emt 00:05:26]} 15. axb4 {[%clk 01:11:59]} {[%emt
00:02:57]} axb4 {[%clk 01:16:29]} {[%emt 00:00:22]} 16. Nb1 {[%clk 01:12:00]}
{[%emt 00:00:28]} Qa5 {[%clk 01:12:13]} {[%emt 00:04:46]} 17. h5 {[%clk
01:11:59]} {[%emt 00:00:31]} Nc4 {[%clk 01:06:25]} {[%emt 00:06:18]} 18. Bxc4
{[%clk 01:10:52]} {[%emt 00:01:38]} Rxc4 {[%clk 01:06:05]} {[%emt 00:00:50]} 19.
hxg6 {[%clk 01:11:02]} {[%emt 00:00:20]} fxg6 {[%clk 01:06:23]} {[%emt
00:00:11]} 20. Bh6 {[%clk 01:07:15]} {[%emt 00:04:16]} Nxe4 {[%clk 01:00:34]}
{[%emt 00:06:21]} 21. Qe2 {[%clk 01:01:21]} {[%emt 00:06:24]} Bxh6+ {[%clk
00:58:04]} {[%emt 00:03:00]} 22. Rxh6 {[%clk 01:01:17]} {[%emt 00:00:34]} Qg5+
{[%clk 00:58:02]} {[%emt 00:00:32]} 23. Rd2 {[%clk 00:56:31]} {[%emt 00:05:16]}
Rxd4 {[%clk 00:55:57]} {[%emt 00:02:35]} 0-1

[Event "Polofinale MCR junioru 2023"]
[Site "Czech Republic"]
[Date "2023.11.13"]
[Round "3.37"]
[White "Hampl, David"]
[Black "Gregor, Alexandr"]
[Result "0-1"]
[TimeControl "90 min per 40 moves + 15 min + 30 sec / move from move 1"]
[WhiteFideId "398802"]
[BlackFideId "23735813"]
[WhiteElo "1801"]
[BlackElo "1601"]

1. d4 {[%clk 01:30:58]} Nf6 {[%clk 01:30:55]} {[%emt 00:00:06]} 2. Bg5 {[%clk
01:31:15]} {[%emt 00:00:13]} h6 {[%clk 01:27:50]} {[%emt 00:03:35]} 3. Bxf6
{[%clk 01:31:32]} {[%emt 00:00:12]} exf6 {[%clk 01:28:15]} {[%emt 00:00:06]} 4.
g3 {[%clk 01:31:40]} {[%emt 00:00:22]} d5 {[%clk 01:28:36]} {[%emt 00:00:09]} 5.
Bg2 {[%clk 01:31:35]} {[%emt 00:00:35]} Bf5 {[%clk 01:28:40]} {[%emt 00:00:27]}
6. e3 {[%clk 01:31:44]} {[%emt 00:00:21]} c6 {[%clk 01:25:37]} {[%emt
00:03:33]} 7. Nd2 {[%clk 01:31:38]} {[%emt 00:00:35]} Bd6 {[%clk 01:25:00]}
{[%emt 00:01:08]} 8. Ne2 {[%clk 01:31:51]} {[%emt 00:00:17]} Qd7 {[%clk
01:24:04]} {[%emt 00:01:27]} 9. O-O {[%clk 01:30:23]} {[%emt 00:01:57]} Bh3
{[%clk 01:23:09]} {[%emt 00:01:26]} 10. c4 {[%clk 01:30:02]} {[%emt 00:00:51]}
Bxg2 {[%clk 01:23:11]} {[%emt 00:00:29]} 11. Kxg2 {[%clk 01:30:25]} {[%emt
00:00:06]} dxc4 {[%clk 01:21:46]} {[%emt 00:01:55]} 12. Nxc4 {[%clk 01:30:33]}
{[%emt 00:00:22]} Bc7 {[%clk 01:21:53]} {[%emt 00:00:24]} 13. Qb3 {[%clk
01:27:51]} {[%emt 00:03:11]} O-O {[%clk 01:19:46]} {[%emt 00:02:37]} 14. Rac1
{[%clk 01:24:17]} {[%emt 00:04:03]} b5 {[%clk 01:13:05]} {[%emt 00:07:11]} 15.
Nd2 {[%clk 01:23:37]} {[%emt 00:01:09]} Bb6 {[%clk 01:09:06]} {[%emt 00:04:30]}
16. Nf4 {[%clk 01:15:26]} {[%emt 00:08:41]} Na6 {[%clk 01:02:58]} {[%emt
00:06:38]} 17. a4 {[%clk 01:11:46]} {[%emt 00:04:10]} Nc7 {[%clk 00:55:40]}
{[%emt 00:07:48]} 18. Rc2 {[%clk 01:07:46]} {[%emt 00:04:30]} Ne6 {[%clk
00:48:58]} {[%emt 00:07:12]} 19. Nd3 {[%clk 01:05:50]} {[%emt 00:02:26]} Bxd4
{[%clk 00:35:59]} {[%emt 00:13:29]} 20. exd4 {[%clk 01:01:05]} {[%emt
00:05:15]} Nxd4 {[%clk 00:36:17]} {[%emt 00:00:13]} 21. Nc5 {[%clk 00:59:57]}
{[%emt 00:01:37]} Qf5 {[%clk 00:33:11]} {[%emt 00:03:36]} 22. Qc3 {[%clk
00:43:12]} {[%emt 00:17:15]} Nxc2 {[%clk 00:33:32]} {[%emt 00:00:09]} 23. Rc1
{[%clk 00:41:53]} {[%emt 00:01:48]} Qd5+ {[%clk 00:33:18]} {[%emt 00:00:45]} 24.
Nf3 {[%clk 00:40:58]} {[%emt 00:01:26]} g5 {[%clk 00:23:30]} {[%emt 00:10:17]}
25. h3 {[%clk 00:29:01]} {[%emt 00:12:27]} f5 {[%clk 00:20:30]} {[%emt
00:03:30]} 26. g4 {[%clk 00:20:37]} {[%emt 00:08:53]} fxg4 {[%clk 00:20:04]}
{[%emt 00:00:57]} 27. hxg4 {[%clk 00:20:55]} {[%emt 00:00:12]} h5 {[%clk
00:15:50]} {[%emt 00:04:44]} 28. Kg3 {[%clk 00:10:26]} {[%emt 00:10:59]} hxg4
{[%clk 00:13:17]} {[%emt 00:03:03]} 29. Ne5 {[%clk 00:07:55]} {[%emt 00:03:00]}
Nd4 {[%clk 00:12:22]} {[%emt 00:01:25]} 30. Ncd7 {[%clk 00:07:02]} {[%emt
00:01:23]} Ne2+ {[%clk 00:10:45]} {[%emt 00:02:07]} 31. Kxg4 {[%clk 00:01:59]}
{[%emt 00:05:32]} Qg2+ {[%clk 00:04:26]} {[%emt 00:06:50]} 32. Kf5 {[%clk
00:01:16]} {[%emt 00:01:12]} Nxc3 {[%clk 00:04:26]} {[%emt 00:00:31]} 33. Rxc3
{[%clk 00:01:35]} {[%emt 00:00:10]} Qxf2+ {[%clk 00:04:15]} {[%emt 00:00:41]}
34. Rf3 {[%clk 00:01:10]} {[%emt 00:00:56]} Qc2+ {[%clk 00:04:33]} {[%emt
00:00:12]} 35. Kxg5 {[%clk 00:01:27]} {[%emt 00:00:12]} Qd2+ {[%clk 00:02:16]}
{[%emt 00:02:48]} 36. Kh5 {[%clk 00:01:07]} {[%emt 00:00:50]} Qh2+ {[%clk
00:02:23]} {[%emt 00:00:23]} 37. Kg4 {[%clk 00:01:01]} {[%emt 00:00:36]} f5+
{[%clk 00:02:23]} {[%emt 00:00:31]} 38. Kg5 {[%clk 00:01:20]} {[%emt 00:00:11]}
Kg7 {[%clk 00:01:36]} {[%emt 00:01:16]} 0-1

[Event "Polofinale MCR junioru 2023"]
[Site "Czech Republic"]
[Date "2023.11.13"]
[Round "3.38"]
[White "Jurok, Vojtech"]
[Black "Sklar, Petr"]
[Result "1-0"]
[TimeControl "90 min per 40 moves + 15 min + 30 sec / move from move 1"]
[WhiteFideId "23741023"]
[BlackFideId "23731141"]
[WhiteElo "1801"]
[BlackElo "1160"]

1. e4 {[%clk 01:30:57]} {[%emt 00:00:02]} d6 {[%clk 01:30:54]} {[%emt
00:00:06]} 2. d4 {[%clk 01:31:21]} {[%emt 00:00:06]} Nf6 {[%clk 01:31:19]}
{[%emt 00:00:05]} 3. Nc3 {[%clk 01:31:35]} {[%emt 00:00:15]} Nbd7 {[%clk
01:31:42]} {[%emt 00:00:07]} 4. f4 {[%clk 01:31:54]} {[%emt 00:00:11]} e5
{[%clk 01:31:59]} {[%emt 00:00:12]} 5. Nf3 {[%clk 01:32:13]} {[%emt 00:00:11]}
exd4 {[%clk 01:32:09]} {[%emt 00:00:21]} 6. Qxd4 {[%clk 01:32:35]} {[%emt
00:00:07]} c6 {[%clk 01:32:29]} {[%emt 00:00:10]} 7. Bd2 {[%clk 01:32:21]}
{[%emt 00:00:44]} d5 {[%clk 01:16:29]} {[%emt 00:16:30]} 8. exd5 {[%clk
01:15:51]} {[%emt 00:17:01]} Bc5 {[%clk 01:15:53]} {[%emt 00:01:05]} 9. Qd3
{[%clk 01:15:46]} {[%emt 00:00:35]} O-O {[%clk 01:07:14]} {[%emt 00:09:09]} 10.
h3 {[%clk 01:02:34]} {[%emt 00:13:42]} Re8+ {[%clk 00:59:04]} {[%emt 00:08:40]}
11. Be2 {[%clk 01:02:43]} {[%emt 00:00:21]} cxd5 {[%clk 00:48:40]} {[%emt
00:10:54]} 12. O-O-O {[%clk 00:53:34]} {[%emt 00:09:39]} Ne4 {[%clk 00:45:02]}
{[%emt 00:04:07]} 13. Be1 {[%clk 00:52:21]} {[%emt 00:01:44]} Nxc3 {[%clk
00:41:44]} {[%emt 00:03:47]} 14. Bxc3 {[%clk 00:50:53]} {[%emt 00:01:59]} Nf6
{[%clk 00:41:44]} {[%emt 00:00:29]} 15. Bd4 {[%clk 00:37:08]} {[%emt 00:14:16]}
b6 {[%clk 00:36:46]} {[%emt 00:05:28]} 16. Rhe1 {[%clk 00:26:44]} {[%emt
00:10:53]} a5 {[%clk 00:31:00]} {[%emt 00:06:16]} 17. Ne5 {[%clk 00:20:35]}
{[%emt 00:06:40]} Qc7 {[%clk 00:26:57]} {[%emt 00:04:32]} 18. Bf3 {[%clk
00:18:59]} {[%emt 00:02:06]} Ba6 {[%clk 00:25:23]} {[%emt 00:02:04]} 19. Qc3
{[%clk 00:16:12]} {[%emt 00:03:17]} Bb7 {[%clk 00:19:08]} {[%emt 00:06:45]} 20.
Bxc5 {[%clk 00:14:18]} {[%emt 00:02:24]} bxc5 {[%clk 00:18:34]} {[%emt
00:01:04]} 21. g3 {[%clk 00:11:25]} {[%emt 00:03:23]} Ne4 {[%clk 00:16:35]}
{[%emt 00:02:29]} 22. Bxe4 {[%clk 00:11:14]} {[%emt 00:00:41]} dxe4 {[%clk
00:16:55]} {[%emt 00:00:10]} 23. Rd7 {[%clk 00:11:12]} {[%emt 00:00:31]} Qb6
{[%clk 00:14:17]} {[%emt 00:03:08]} 24. Rxf7 {[%clk 00:10:04]} {[%emt
00:01:37]} Rxe5 {[%clk 00:10:46]} {[%emt 00:04:01]} 25. Rxb7 {[%clk 00:10:22]}
{[%emt 00:00:12]} Qxb7 {[%clk 00:09:42]} {[%emt 00:01:34]} 26. Qxe5 {[%clk
00:10:46]} {[%emt 00:00:06]} Rd8 {[%clk 00:08:32]} {[%emt 00:01:40]} 27. Qxe4
{[%clk 00:09:07]} {[%emt 00:02:10]} Qf7 {[%clk 00:08:11]} {[%emt 00:00:50]} 28.
Qe6 {[%clk 00:08:20]} {[%emt 00:01:17]} 1-0

[Event "Polofinale MCR junioru 2023"]
[Site "Czech Republic"]
[Date "2023.11.14"]
[Round "4.1"]
[White "Jun, Rudolf"]
[Black "Vilimek, Vit"]
[Result "1-0"]
[TimeControl "90 min per 40 moves + 15 min + 30 sec / move from move 1"]
[WhiteFideId "376612"]
[BlackFideId "23718218"]
[WhiteElo "2260"]
[BlackElo "2163"]

1. e4 {[%clk 01:30:56]} {[%emt 00:00:02]} e5 {[%clk 01:30:06]} {[%emt
00:00:56]} 2. Nf3 {[%clk 01:30:49]} {[%emt 00:00:37]} Nc6 {[%clk 01:30:33]}
{[%emt 00:00:02]} 3. Nc3 {[%clk 01:28:48]} {[%emt 00:02:31]} Nf6 {[%clk
01:30:55]} {[%emt 00:00:08]} 4. Be2 {[%clk 01:11:53]} {[%emt 00:17:25]} Bb4
{[%clk 01:23:35]} {[%emt 00:07:51]} 5. Nd5 {[%clk 01:07:38]} {[%emt 00:04:45]}
Bc5 {[%clk 01:19:38]} {[%emt 00:04:26]} 6. Nxf6+ {[%clk 01:00:23]} {[%emt
00:07:45]} Qxf6 {[%clk 01:18:52]} {[%emt 00:01:16]} 7. d3 {[%clk 00:58:32]}
{[%emt 00:02:22]} h6 {[%clk 01:15:54]} {[%emt 00:03:28]} 8. Be3 {[%clk
00:57:49]} d6 {[%clk 01:14:47]} {[%emt 00:02:50]} 9. c3 {[%clk 00:57:19]}
{[%emt 00:01:00]} Bg4 {[%clk 01:11:06]} {[%emt 00:04:10]} 10. O-O {[%clk
00:54:38]} {[%emt 00:03:10]} Bxf3 {[%clk 01:08:56]} {[%emt 00:02:41]} 11. Bxf3
{[%clk 00:53:57]} {[%emt 00:01:11]} O-O {[%clk 01:07:20]} {[%emt 00:02:07]} 12.
b4 {[%clk 00:54:09]} {[%emt 00:00:18]} Bxe3 {[%clk 01:07:15]} {[%emt 00:00:35]}
13. fxe3 {[%clk 00:54:37]} {[%emt 00:00:02]} Qg5 {[%clk 01:07:00]} {[%emt
00:00:45]} 14. Qe2 {[%clk 00:54:13]} {[%emt 00:00:54]} Ne7 {[%clk 01:06:26]}
{[%emt 00:01:04]} 15. a4 {[%clk 00:42:48]} {[%emt 00:11:55]} a5 {[%clk
01:00:35]} {[%emt 00:06:21]} 16. b5 {[%clk 00:42:43]} {[%emt 00:00:35]} b6
{[%clk 00:57:25]} {[%emt 00:03:40]} 17. d4 {[%clk 00:35:16]} {[%emt 00:07:57]}
Rae8 {[%clk 00:54:09]} {[%emt 00:03:47]} 18. Rae1 {[%clk 00:32:53]} {[%emt
00:02:52]} Kh8 {[%clk 00:48:18]} {[%emt 00:06:22]} 19. g3 {[%clk 00:28:48]}
{[%emt 00:04:35]} f5 {[%clk 00:32:47]} {[%emt 00:16:01]} 20. exf5 {[%clk
00:27:27]} {[%emt 00:01:50]} Nxf5 {[%clk 00:32:56]} {[%emt 00:00:22]} 21. Bc6
{[%clk 00:26:36]} {[%emt 00:01:21]} Rd8 {[%clk 00:19:17]} {[%emt 00:14:10]} 22.
Be4 {[%clk 00:21:44]} {[%emt 00:05:20]} Ne7 {[%clk 00:10:44]} {[%emt 00:09:03]}
23. Kg2 {[%clk 00:20:23]} {[%emt 00:01:51]} Ng6 {[%clk 00:08:54]} {[%emt
00:02:21]} 24. Qd3 {[%clk 00:17:54]} {[%emt 00:02:58]} Ne7 {[%clk 00:06:17]}
{[%emt 00:03:08]} 25. Qe2 {[%clk 00:18:16]} {[%emt 00:00:07]} Ng6 {[%clk
00:06:04]} {[%emt 00:00:44]} 26. Rxf8+ {[%clk 00:17:17]} {[%emt 00:01:28]} Rxf8
{[%clk 00:05:14]} {[%emt 00:01:21]} 27. Rf1 {[%clk 00:16:38]} {[%emt 00:01:08]}
exd4 {[%clk 00:02:01]} {[%emt 00:03:44]} 28. cxd4 {[%clk 00:15:13]} {[%emt
00:01:54]} Re8 {[%clk 00:01:02]} {[%emt 00:01:30]} 29. Qd3 {[%clk 00:14:50]}
{[%emt 00:00:53]} Nf8 {[%clk 00:00:41]} {[%emt 00:00:51]} 30. Bc6 {[%clk
00:13:28]} {[%emt 00:01:51]} Rd8 {[%clk 00:00:57]} {[%emt 00:00:15]} 31. Qe4
{[%clk 00:13:01]} {[%emt 00:00:56]} Ng6 {[%clk 00:00:39]} {[%emt 00:00:48]} 32.
Be8 {[%clk 00:08:30]} {[%emt 00:05:01]} Nh4+ {[%clk 00:00:33]} {[%emt
00:00:36]} 33. Kh1 {[%clk 00:08:53]} {[%emt 00:00:07]} 1-0